bitfinex/quotes_ETHUSD_20250724
["timestamp","ask_amount","ask_price","bid_price","bid_amount"]
[1753355844499,4.543,3650.7,3650.6,0.4583]
[1753355844704,4.543,3650.7,3650.5,0.1368]
[1753355845031,7.28220942,3650.7,3650.5,0.1368]
[1753355845207,4.543,3650.7,3650.2,0.4583]
[1753355845407,2.73935077,3650.5,3650.4,0.1368]
[1753355845607,2.73932477,3650.6,3650.4,0.1368]
[1753355845801,2.73935077,3650.5,3650.4,0.1368]
[1753355846439,2.73957591,3650.2,3650.1,0.001]
[1753355846614,4.538,3650.4,3650.1,0.001]
[1753355846939,7.27743961,3650.4,3650.1,0.4593]
[1753355847141,4.538,3650.4,3650.1,0.001]
[1753355847305,4.538,3650.4,3650.2,0.4583]
[1753355847506,7.27730476,3650.6,3650.2,0.5951]
[1753355847705,0.1368,3650.7,3650.2,0.5951]
[1753355847706,4.538,3650.7,3650.3,0.4583]
[1753355847924,4.538,3650.7,3650.6,0.1368]
[1753355848127,7.27722982,3650.7,3650.6,0.1368]
[1753355848441,2.73861887,3651.5,3650.8,2.7390764]
[1753355848604,2.73854228,3651.6,3651.0,2.73892723]
[1753355848804,0.1788,3651.9,3651.4,0.1368]
[1753355849009,4.538,3651.7,3651.4,0.1368]
[1753355849212,4.538,3651.7,3651.5,0.4583]
[1753355849409,2.74038235,3651.8,3651.4,0.1368]
[1753355849644,0.002,3651.8,3651.5,0.4583]
[1753355849845,0.002,3651.8,3651.7,0.1368]
[1753355850635,0.002,3651.8,3651.7,0.5951]
[1753355851243,0.002,3651.8,3651.7,0.1368]
[1753355851445,2.74037559,3651.8,3651.7,0.1368]
[1753355852926,2.73858341,3651.6,3651.2,0.7919]
[1753355853136,2.73858341,3651.6,3651.5,0.1368]
[1753355853336,2.73847546,3651.7,3651.5,0.1368]
[1753355853650,2.73852557,3651.6,3651.5,0.1368]
[1753355854224,5.3663,3651.6,3650.5,0.7586]
[1753355854542,5.3663,3651.6,3650.6,0.48569275]
[1753355854710,2.73895811,3651.1,3650.7,0.55]
[1753355854914,2.73895811,3651.1,3650.8,0.4583]
[1753355855128,7.27575744,3651.3,3650.9,0.4583]
[1753355855328,4.537,3651.5,3650.9,0.4583]
[1753355856055,4.537,3651.5,3651.0,3.0]
[1753355856056,7.27565039,3651.5,3651.0,3.0]
[1753355856259,4.537,3651.5,3650.9,0.55]
[1753355856457,4.537,3651.5,3651.0,0.4583]
[1753355856458,7.27561695,3651.5,3651.0,0.4583]
[1753355856614,7.27561695,3651.5,3650.9,3.0]
[1753355856816,7.27561695,3651.5,3651.1,0.4583]
[1753355857018,7.27561695,3651.5,3651.2,0.4583]
[1753355857260,2.73868562,3651.4,3651.3,0.4583]
[1753355859461,2.73878141,3651.3,3650.9,0.55]
[1753355859929,2.73878086,3651.3,3651.0,0.4583]
[1753355860265,2.7388292,3651.2,3651.0,0.4583]
[1753355860463,2.73872705,3651.4,3651.1,0.4583]
[1753355860642,2.73872705,3651.4,3651.2,0.4583]
[1753355860824,4.539,3651.8,3651.3,0.4583]
[1753355860825,2.73863011,3651.5,3651.3,0.4583]
[1753355861025,4.539,3651.8,3651.4,0.4583]
[1753355861228,4.539,3651.8,3651.5,0.4583]
[1753355861470,2.73846179,3651.7,3651.6,0.4583]
[1753355862466,2.7386148,3651.5,3651.2,1.2742]
[1753355862628,2.7386148,3651.5,3651.1,0.001]
[1753355862629,4.536,3651.4,3651.1,0.001]
[1753355862830,4.536,3651.3,3651.1,0.001]
[1753355863026,2.73860057,3651.5,3651.2,0.4583]
[1753355863272,4.536,3651.5,3651.1,0.001]
[1753355863434,0.002,3651.8,3651.2,0.4583]
[1753355863435,4.536,3651.6,3651.2,0.4583]
[1753355863635,0.002,3651.8,3651.3,0.55]
[1753355863830,2.74039219,3651.8,3651.3,0.55]
[1753355864034,2.74039219,3651.8,3651.4,0.4583]
[1753355864246,2.74039219,3651.8,3651.7,0.1368]
[1753355864446,0.002,3651.8,3651.7,1.961]
[1753355864631,0.002,3651.8,3651.7,7.89555058]
[1753355864846,0.04,3652.9,3652.0,0.55]
[1753355865071,0.04,3652.9,3652.3,1.3659]
[1753355865268,0.04,3652.9,3652.8,0.1368]
[1753355865472,2.77755098,3652.9,3652.8,0.1368]
[1753355865672,2.9843989,3652.9,3652.8,0.1368]
[1753355865964,2.73774946,3652.7,3652.3,1.8242]
[1753355866166,2.73774946,3652.7,3652.4,0.4583]
[1753355866347,2.73774946,3652.7,3652.6,0.1368]
[1753355866931,2.73779679,3652.6,3651.9,4.3745]
[1753355867159,2.73779679,3652.6,3652.5,0.1368]
[1753355870297,2.73882559,3651.2,3650.5,0.1368]
[1753355870602,2.73882559,3651.2,3650.4,3.22675225]
[1753355870603,2.73882559,3651.2,3651.0,0.1368]
[1753355871098,2.73867557,3651.4,3651.1,0.834]
[1753355871239,2.73857108,3651.6,3651.1,0.001]
[1753355871570,2.73857108,3651.6,3651.4,0.1368]
[1753355871732,4.534,3651.8,3651.5,0.4666]
[1753355871937,4.534,3651.8,3651.6,0.4666]
[1753355872243,2.73850643,3651.7,3651.6,0.6034]
[1753355872871,2.73830061,3651.9,3651.6,0.6034]
[1753355873075,2.7383791,3651.8,3651.6,0.6034]
[1753355873647,2.73845058,3651.7,3651.6,0.1368]
[1753355874062,2.73879976,3651.3,3651.1,0.001]
[1753355874261,2.73882559,3651.2,3651.1,0.001]
[1753355875570,0.1368,3651.5,3651.1,0.001]
[1753355875767,1.2244,3652.2,3651.1,0.001]
[1753355875768,4.534,3651.7,3651.1,0.6044]
[1753355875973,2.73860312,3651.5,3651.3,0.1368]
[1753355876360,2.73867557,3651.4,3651.3,0.6034]
[1753355876667,0.8002,3651.6,3651.1,0.001]
[1753355876874,2.73882559,3651.2,3651.1,0.001]
[1753355877381,0.8002,3651.6,3651.1,0.001]
[1753355877676,2.73853687,3651.6,3651.1,0.4676]
[1753355877858,0.7666,3652.1,3651.2,0.4666]
[1753355878058,0.39373171,3652.0,3651.2,0.4666]
[1753355878262,2.7385767,3651.6,3651.2,0.4666]
[1753355878770,2.73860354,3651.5,3651.2,0.4666]
[1753355879385,2.73867941,3651.4,3651.2,0.4666]
[1753355880380,2.73862028,3651.5,3651.2,0.4666]
[1753355880599,2.73847274,3651.7,3651.1,0.001]
[1753355880761,2.73853394,3651.6,3651.3,0.4666]
[1753355880955,7.27247887,3651.7,3651.4,0.4666]
[1753355881162,4.534,3651.9,3651.5,0.4666]
[1753355881394,4.85217094,3651.9,3651.6,0.4666]
[1753355881694,4.85217094,3651.9,3651.3,0.8272]
[1753355881695,2.73819765,3652.1,3651.7,0.4666]
[1753355881992,2.73821969,3652.1,3651.8,0.4666]
[1753355882200,2.73810085,3652.2,3651.8,0.4666]
[1753355882382,4.534,3652.3,3651.8,0.4666]
[1753355882383,2.73815098,3652.1,3651.8,0.4666]
[1753355882587,7.27207446,3652.3,3651.8,0.4666]
[1753355882895,4.534,3652.5,3652.0,0.7983]
[1753355883198,4.534,3652.5,3652.0,1.2649]
[1753355883199,2.73814857,3652.2,3652.0,1.2649]
[1753355883371,2.73792574,3652.4,3651.6,0.7636]
[1753355883372,1.2376,3652.4,3651.6,0.7636]
[1753355883578,2.73814232,3652.2,3651.6,0.7636]
[1753355883797,2.73815065,3652.1,3651.6,0.7636]
[1753355884097,2.73807568,3652.2,3651.2,0.7636]
[1753355884288,0.805,3652.4,3651.2,0.7636]
[1753355884289,2.73835433,3651.9,3651.2,0.7636]
[1753355884473,7.27217652,3652.1,3651.4,2.73867097]
[1753355884701,0.7696,3652.8,3651.5,6.7825718]
[1753355884899,2.73778236,3652.6,3651.7,4.1210402]
[1753355885192,3.50723978,3652.8,3652.1,3.55]
[1753355885193,2.7377547,3652.7,3652.1,3.55]
[1753355885584,2.7377547,3652.7,3652.2,0.4666]
[1753355885802,2.7377547,3652.7,3652.3,0.4666]
[1753355885999,7.27165633,3652.8,3652.3,0.4666]
[1753355886304,2.73770364,3652.7,3652.3,0.4666]
[1753355886599,0.04,3652.9,3652.6,0.55]
[1753355886828,0.04,3652.9,3652.7,0.4666]
[1753355887295,0.04,3652.9,3652.8,0.1368]
[1753355887698,0.04,3652.9,3652.8,0.6034]
[1753355887999,0.04,3652.9,3652.8,7.68510218]
[1753355888210,0.04,3652.9,3652.8,7.65772593]
[1753355889006,0.04,3652.9,3652.8,4.9201]
[1753355889504,0.04,3652.9,3652.8,7.65772593]
[1753355890708,0.04,3652.9,3652.8,4.9201]
[1753355891275,0.04,3652.9,3652.8,7.65772593]
[1753355891480,0.04,3652.9,3652.8,8.60293593]
[1753355892512,0.04,3652.9,3652.8,7.65772593]
[1753355894780,0.04,3652.9,3652.8,18.40593593]
[1753355894980,0.04,3652.9,3652.8,27.60394293]
[1753355895184,0.04,3652.9,3652.8,26.86763193]
[1753355895386,0.04,3652.9,3652.8,20.72062593]
[1753355895706,0.04,3652.9,3652.8,23.41971769]
[1753355895875,0.04,3652.9,3652.8,25.82534769]
[1753355896608,0.04,3652.9,3652.8,18.44584769]
[1753355896935,0.04,3652.9,3652.8,10.35681769]
[1753355897079,0.04,3652.9,3652.8,23.55562369]
[1753355897685,0.002,3653.3,3653.2,15.98532717]
[1753355897881,0.002,3653.3,3653.2,13.92771398]
[1753355898186,0.002,3653.3,3653.2,18.36566398]
[1753355898403,0.002,3653.3,3653.2,9.86431398]
[1753355898618,0.002,3653.3,3653.2,23.26943217]
[1753355899008,0.002,3653.3,3653.2,42.05742617]
[1753355899731,1e-08,3653.3,3653.2,42.05742617]
[1753355899887,1e-08,3653.3,3653.2,13.70342617]
[1753355900088,1e-08,3653.3,3653.2,43.70342617]
[1753355900287,1e-08,3653.3,3653.2,46.40251793]
[1753355900987,0.002,3653.7,3653.6,4.93302649]
[1753355900988,1e-08,3653.7,3653.6,4.93302649]
[1753355901222,1e-08,3653.7,3653.6,43.24732649]
[1753355901387,1e-08,3653.7,3653.6,43.68862649]
[1753355903022,1e-08,3653.7,3653.6,18.85625949]
[1753355903225,1e-08,3653.7,3653.6,22.80889099]
[1753355903432,1e-08,3653.7,3653.6,18.28089099]
[1753355903627,1e-08,3653.7,3653.6,24.45489099]
[1753355904040,1e-08,3653.7,3653.6,44.78950999]
[1753355904907,1e-08,3653.7,3653.6,33.17087199]
[1753355905108,1e-08,3653.7,3653.6,30.60587199]
[1753355905308,1e-08,3653.7,3653.6,28.95987199]
[1753355905598,1e-08,3653.7,3653.6,15.17368899]
[1753355905799,1e-08,3653.7,3653.6,14.73238899]
[1753355906141,1e-08,3653.7,3653.6,12.01894549]
[1753355906356,1e-08,3653.7,3653.6,18.92762749]
[1753355906639,1e-08,3653.7,3653.6,19.47762749]
[1753355907146,1e-08,3653.7,3653.6,21.12362749]
[1753355907319,1e-08,3653.7,3653.6,43.68662649]
[1753355907518,1e-08,3653.7,3653.6,20.13824525]
[1753355907711,1e-08,3653.7,3653.6,21.92104525]
[1753355908201,1e-08,3653.7,3653.6,14.10490349]
[1753355908400,1e-08,3653.7,3653.6,13.90172349]
[1753355908634,1e-08,3653.7,3653.6,14.45172349]
[1753355908943,2.73737653,3653.2,3652.8,0.8236]
[1753355909100,2.73737653,3653.2,3652.9,4.526]
[1753355909101,0.4537,3653.2,3652.9,4.526]
[1753355909300,2.73708606,3653.6,3653.0,3.0]
[1753355909538,1e-08,3653.7,3653.4,3.0]
[1753355909750,1e-08,3653.7,3653.5,4.526]
[1753355910659,1e-08,3653.7,3653.6,19.50377949]
[1753355911058,1e-08,3653.7,3653.6,18.35663149]
[1753355911222,1e-08,3653.7,3653.6,30.23095949]
[1753355911424,1e-08,3653.7,3653.6,7.55092649]
[1753355911677,1e-08,3653.7,3653.6,19.95273149]
[1753355911887,1e-08,3653.7,3653.6,22.65182325]
[1753355912225,1e-08,3653.7,3653.6,17.72168225]
[1753355912426,1e-08,3653.7,3653.6,10.25001825]
[1753355912626,1e-08,3653.7,3653.6,13.70802649]
[1753355912861,1e-08,3653.7,3653.6,6.55962649]
[1753355913167,1e-08,3653.7,3653.6,12.07692649]
[1753355913552,1e-08,3653.7,3653.6,11.63562649]
[1753355914127,1e-08,3653.7,3653.6,12.07692649]
[1753355914468,1e-08,3653.7,3653.6,13.55833437]
[1753355914667,1e-08,3653.7,3653.6,36.25828437]
[1753355914841,1e-08,3653.7,3653.6,35.30466137]
[1753355915524,1e-08,3653.7,3653.6,43.55833437]
[1753355915950,1e-08,3653.7,3653.6,43.19728537]
[1753355916668,1e-08,3653.7,3653.6,43.55833437]
[1753355916962,1e-08,3653.7,3653.6,43.29829637]
[1753355917466,1e-08,3653.7,3653.6,42.97151437]
[1753355917640,1e-08,3653.7,3653.6,19.40615337]
[1753355917845,1e-08,3653.7,3653.6,14.28683837]
[1753355918040,1e-08,3653.7,3653.6,18.60080737]
[1753355918257,1e-08,3653.7,3653.6,18.41360737]
[1753355918465,1e-08,3653.7,3653.6,8.72783437]
[1753355918766,1e-08,3653.7,3653.6,0.1368]
[1753355918968,0.82800001,3653.7,3653.6,0.1368]
[1753355919162,1.28170001,3653.7,3653.6,0.1368]
[1753355919359,0.82800001,3653.7,3653.6,3.1368]
[1753355919952,0.82800001,3653.7,3653.6,5.87382649]
[1753355920157,1e-08,3653.7,3653.6,6.42382649]
[1753355920880,1e-08,3653.7,3653.6,3.6868]
[1753355921287,1e-08,3653.7,3653.6,6.42382649]
[1753355922584,1.27960001,3653.7,3653.6,0.1368]
[1753355922784,4.01655159,3653.7,3653.6,4.523]
[1753355922992,2.73702649,3653.6,3653.5,4.6598]
[1753355923151,2.73702649,3653.6,3653.5,4.523]
[1753355923352,3.19072649,3653.6,3653.5,4.523]
[1753355923748,3.19072649,3653.6,3652.8,0.001]
[1753355923749,2.73737548,3653.2,3652.8,0.001]
[1753355924089,3.53544899,3653.1,3652.8,0.1378]
[1753355924288,3.19118944,3653.0,3652.8,0.1378]
[1753355924491,2.73755098,3652.9,3652.8,0.001]
[1753355924676,3.54525098,3652.9,3652.8,0.001]
[1753355924997,0.1368,3653.0,3652.8,0.001]
[1753355925157,0.4537,3652.9,3652.8,0.001]
[1753355925355,0.8208,3652.9,3652.8,0.001]
[1753355925606,1.2745,3652.9,3652.8,0.1378]
[1753355925905,1.2745,3652.9,3652.8,0.001]
[1753355926557,0.8208,3652.9,3652.8,0.001]
[1753355926760,0.8208,3652.9,3652.8,0.1378]
[1753355927655,0.1368,3653.4,3652.8,6.42542593]
[1753355927855,0.8009,3653.3,3652.8,7.6608]
[1753355928188,0.8009,3653.3,3653.2,0.1368]
[1753355928589,0.002,3654.4,3653.2,0.1368]
[1753355928590,0.80090001,3653.7,3653.3,0.55]
[1753355928793,1e-08,3653.7,3653.6,29.12323049]
[1753355928996,1e-08,3653.7,3653.6,24.89137649]
[1753355929497,1e-08,3653.7,3653.6,20.55512249]
[1753355930298,1e-08,3653.7,3653.6,17.12201749]
[1753355930956,1e-08,3653.7,3653.6,10.94582649]
[1753355931295,1e-08,3653.7,3653.6,7.6588]
[1753355932079,1e-08,3653.7,3653.6,10.39582649]
[1753355933054,1e-08,3653.7,3653.6,10.94582649]
[1753355934365,1e-08,3653.7,3653.6,8.2088]
[1753355934571,1e-08,3653.7,3653.6,10.94582649]
[1753355936400,1e-08,3653.7,3653.6,30.29594549]
[1753355936607,1e-08,3653.7,3653.6,11.41142649]
[1753355936812,1e-08,3653.7,3653.6,3.1368]
[1753355937015,1e-08,3653.7,3653.6,18.36887049]
[1753355937364,1e-08,3653.7,3653.6,14.22248949]
[1753355937614,1e-08,3653.7,3653.6,11.40942649]
[1753355938632,1e-08,3653.9,3653.6,14.80823795]
[1753355938907,0.04,3655.9,3655.8,19.65329639]
[1753355939105,0.04,3655.9,3655.8,24.17329639]
[1753355939322,0.04,3655.9,3655.8,24.63889639]
[1753355939503,0.04,3655.9,3655.8,23.68578115]
[1753355939707,0.04,3655.9,3655.8,13.97007115]
[1753355939899,0.04,3655.9,3655.8,34.32574115]
[1753355940303,0.04,3655.9,3655.8,14.79167115]
[1753355940640,0.04,3655.9,3655.8,24.89663015]
[1753355940771,0.04,3655.9,3655.8,34.89272915]
[1753355940968,0.04,3655.9,3655.8,33.83594715]
[1753355941173,0.04,3655.9,3655.8,23.99803015]
[1753355941490,0.04,3655.9,3655.8,11.59069176]
[1753355941669,0.04,3655.9,3655.8,8.8916]
[1753355941878,0.04,3655.9,3655.8,8.8906]
[1753355942199,0.04,3655.9,3655.8,4.3716]
[1753355942406,0.04,3655.9,3655.8,32.51136018]
[1753355942567,0.04,3655.9,3655.8,3.55]
[1753355942772,0.04,3655.9,3655.8,8.069]
[1753355943375,0.04,3655.9,3655.8,3.55]
[1753355943571,0.04,3655.9,3655.8,3.76037461]
[1753355943806,0.04,3655.9,3655.8,8.27837461]
[1753355944109,0.04,3655.9,3655.8,3.76037461]
[1753355944310,0.04,3655.9,3655.8,7.518]
[1753355944605,2.77530457,3655.9,3655.8,7.518]
[1753355944811,2.77530457,3655.9,3655.8,4.518]
[1753355944993,0.04,3655.9,3655.8,4.518]
[1753355945667,0.04,3655.9,3655.8,8.27695176]
[1753355945871,0.04,3655.9,3655.8,21.19249054]
[1753355946110,0.04,3655.9,3655.8,34.77470493]
[1753355946927,0.04,3655.9,3655.8,18.68286993]
[1753355947209,0.04,3655.9,3655.8,12.30836193]
[1753355947579,0.04,3655.9,3655.8,27.59149917]
[1753355947806,0.04,3655.9,3655.8,17.76196717]
[1753355948111,0.04,3655.9,3655.8,11.63381017]
[1753355948315,0.04,3655.9,3655.8,10.80337939]
[1753355948720,0.04,3655.9,3655.8,8.067]
[1753355948916,0.04,3655.9,3655.8,8.2038]
[1753355949921,0.042,3655.9,3655.8,8.2038]
[1753355950688,0.042,3655.9,3655.8,10.93917939]
[1753355950914,0.042,3655.9,3655.8,11.391481]
[1753355951100,0.042,3655.9,3655.8,8.2038]
[1753355951817,0.042,3655.9,3655.8,10.93917939]
[1753355952020,0.042,3655.9,3655.8,41.72518549]
[1753355952196,0.042,3655.9,3655.8,29.14067149]
[1753355952390,0.042,3655.9,3655.8,27.52294949]
[1753355952723,0.042,3655.9,3655.8,26.60525349]
[1753355953016,0.042,3655.9,3655.8,13.80450949]
[1753355953208,0.042,3655.9,3655.8,16.00810649]
[1753355953404,0.042,3655.9,3655.8,13.80450949]
[1753355953994,0.042,3655.9,3655.8,8.41085282]
[1753355954185,0.042,3655.9,3655.8,11.14623221]
[1753355954386,0.042,3655.9,3655.8,29.56862821]
[1753355954884,0.042,3655.9,3655.8,18.67656221]
[1753355955692,0.042,3655.9,3655.8,15.94118282]
[1753355955893,0.042,3655.9,3655.8,14.54565821]
[1753355956095,0.042,3655.9,3655.8,11.34467882]
[1753355956294,0.042,3655.9,3655.8,10.41085282]
[1753355956530,0.042,3655.9,3655.8,7.88080994]
[1753355956828,0.042,3655.9,3655.8,12.39580994]
[1753355957333,0.838,3655.9,3655.8,12.39580994]
[1753355957507,1.2721,3655.9,3655.8,7.88080994]
[1753355957711,0.042,3655.9,3655.8,30.59809032]
[1753355957910,0.042,3655.9,3655.8,30.50700032]
[1753355958109,0.002,3656.7,3656.6,3.28478094]
[1753355958313,0.008,3657.3,3657.2,6.28433227]
[1753355958513,0.008,3657.3,3657.2,11.83755543]
[1753355958725,0.008,3657.3,3657.2,38.13017532]
[1753355958924,0.008,3657.3,3657.2,20.28263432]
[1753355959799,0.008,3657.3,3657.2,31.69463632]
[1753355959997,0.008,3657.3,3657.2,17.19037132]
[1753355960211,0.008,3657.3,3657.2,17.50859227]
[1753355960434,0.008,3657.3,3657.2,22.26872261]
[1753355960739,0.008,3657.3,3657.2,42.30276261]
[1753355960921,0.008,3657.3,3657.2,40.26175961]
[1753355961130,0.008,3657.3,3656.4,7.76941168]
[1753355961131,0.7767,3657.2,3655.1,0.04]
[1753355961437,2.73538424,3655.8,3655.1,0.04]
[1753355961635,0.7767,3656.6,3655.1,0.04]
[1753355961636,0.27353842,3655.7,3655.1,0.04]
[1753355961813,2.73538337,3655.8,3655.1,0.04]
[1753355962208,2.73555767,3655.6,3655.1,4.557]
[1753355962395,0.4591,3655.6,3655.1,4.557]
[1753355962599,0.4591,3655.6,3655.1,0.04]
[1753355962600,3.19463305,3655.6,3655.1,0.04]
[1753355963152,2.73553305,3655.6,3655.2,0.55]
[1753355963352,0.7679,3655.8,3655.1,0.04]
[1753355963555,0.4591,3655.5,3655.1,0.04]
[1753355964054,2.7358284,3655.2,3655.1,0.04]
[1753355964224,3.5635284,3655.2,3655.1,0.04]
[1753355964557,4.0226284,3655.2,3655.1,0.04]
[1753355965122,4.0226284,3655.2,3654.1,4.561]
[1753355965123,2.73657708,3654.2,3654.1,0.04]
[1753355965457,2.73644795,3654.4,3654.1,0.04]
[1753355965754,2.73649406,3654.4,3654.1,0.04]
[1753355965955,1.2868,3655.2,3654.1,0.04]
[1753355966121,2.73648692,3654.4,3654.1,0.04]
[1753355966449,2.73651264,3654.3,3654.1,0.04]
[1753355966651,2.73657708,3654.2,3654.1,0.59]
[1753355967156,2.73657708,3654.2,3654.1,0.04]
[1753355967358,3.19567708,3654.2,3654.1,0.04]
[1753355967513,3.95577708,3654.2,3654.1,0.04]
[1753355969418,2.73732617,3653.2,3653.1,0.04]
[1753355969815,0.4591,3653.6,3653.1,0.1768]
[1753355970015,0.7601,3654.2,3653.3,3.0]
[1753355970240,2.73640856,3654.5,3653.6,0.55]
[1753355970442,8.01647271,3654.7,3653.6,0.55]
[1753355970443,0.7652,3654.7,3653.6,0.55]
[1753355970647,0.7652,3654.7,3653.9,0.55]
[1753355970828,0.7652,3654.7,3653.9,0.57736801]
[1753355971037,3.50142072,3654.7,3653.9,0.55]
[1753355971236,4.58443414,3655.0,3654.2,3.28652702]
[1753355971437,4.58443414,3655.0,3654.5,2.7363318]
[1753355971438,1.84845227,3655.0,3654.5,2.7363318]
[1753355971632,1.84845227,3655.0,3654.6,1.0]
[1753355971851,1.84845227,3655.0,3654.7,0.02736202]
[1753355972050,1.84845227,3655.0,3654.9,14.81779296]
[1753355972364,0.042,3655.9,3655.5,0.55]
[1753355972562,0.042,3655.9,3655.6,3.0]
[1753355972862,0.042,3655.9,3655.4,3.0]
[1753355973026,0.042,3655.9,3655.2,3.0]
[1753355973027,0.042,3655.9,3655.2,6.73580915]
[1753355973231,0.042,3655.9,3655.3,0.55]
[1753355973925,0.042,3655.9,3655.1,0.55]
[1753355974161,2.73577417,3655.3,3655.1,0.55]
[1753355974361,0.4591,3655.3,3655.0,3.0]
[1753355974563,2.7358284,3655.2,3655.0,3.0]
[1753355974726,2.73590325,3655.1,3655.0,3.0]
[1753355975146,0.4591,3655.1,3654.4,4.515]
[1753355975329,1.2911,3655.6,3654.4,4.515]
[1753355975526,0.832,3655.6,3654.4,4.515]
[1753355975730,2.73657708,3654.2,3654.1,0.001]
[1753355976557,3.19567708,3654.2,3654.1,0.001]
[1753355977128,4.00687708,3654.2,3654.1,0.001]
[1753355977353,8.52187708,3654.2,3654.1,0.001]
[1753355978142,8.52187708,3654.2,3654.1,1e-08]
[1753355980056,8.65867708,3654.2,3654.1,1e-08]
[1753355980264,8.65967708,3654.2,3654.1,1e-08]
[1753355982779,3.68457708,3654.2,3654.1,1e-08]
[1753355983279,10.20704501,3654.2,3654.1,1e-08]
[1753355983682,4.14367708,3654.2,3654.1,1e-08]
[1753355983846,8.65967708,3654.2,3654.1,1e-08]
[1753355988702,0.1368,3654.2,3654.1,1e-08]
[1753355988901,0.7817,3655.6,3654.5,3.55]
[1753355989062,0.4591,3656.1,3654.5,3.55]
[1753355989063,2.73545335,3655.8,3654.8,0.55]
[1753355989264,4.516,3655.7,3655.0,0.55]
[1753355989604,4.516,3655.7,3655.1,3.50109556]
[1753355989764,7.25146544,3655.7,3655.1,0.7652]
[1753355989962,7.25146544,3655.7,3654.5,0.41]
[1753355989963,4.516,3655.7,3654.7,3.0]
[1753355990195,2.73565475,3655.5,3654.8,0.55]
[1753355990404,2.73565475,3655.5,3654.8,3.28612413]
[1753355991362,4.516,3655.6,3654.9,2.73604008]
[1753355991556,7.25155395,3655.6,3654.9,2.73604008]
[1753355991760,2.73576116,3655.3,3654.8,0.55]
[1753355992013,2.73597041,3655.1,3654.5,3.7508]
[1753355992585,2.73603359,3655.0,3654.5,0.7508]
[1753355992864,2.73626847,3654.7,3654.5,0.4402]
[1753355993176,2.73614388,3654.8,3654.2,0.55]
[1753355993782,2.73622113,3654.7,3654.2,0.55]
[1753355993984,2.73606304,3654.9,3654.2,0.9902]
[1753355994182,2.73606304,3654.9,3654.3,3.0]
[1753355994508,2.73592014,3655.1,3654.3,2.7364924]
[1753355994708,2.73561578,3655.5,3654.8,2.7360674]
[1753355995007,2.73561578,3655.5,3654.7,0.4402]
[1753355995229,2.73561578,3655.5,3654.5,0.55]
[1753355995230,0.757,3654.7,3654.1,1e-08]
[1753355995508,4.515,3654.6,3654.1,1e-08]
[1753355995885,2.73657708,3654.2,3654.1,1e-08]
[1753355996408,13.31494501,3654.2,3654.1,1e-08]
[1753355996577,13.78104501,3654.2,3654.1,1e-08]
[1753355997496,7.71767708,3654.2,3654.1,1e-08]
[1753355998675,7.85447708,3654.2,3654.1,1e-08]
[1753355999214,8.63107708,3654.2,3654.1,1e-08]
[1753355999998,3.64997708,3654.2,3654.1,1e-08]
[1753356000199,8.16497708,3654.2,3654.1,1e-08]
[1753356000511,8.63107708,3654.2,3654.1,1e-08]
[1753356001315,14.69444501,3654.2,3654.1,1e-08]
[1753356003019,3.64997708,3654.2,3654.1,1e-08]
[1753356003221,8.16597708,3654.2,3654.1,1e-08]
[1753356003525,8.63207708,3654.2,3654.1,1e-08]
[1753356004021,4.11607708,3654.2,3654.1,1e-08]
[1753356004219,8.63207708,3654.2,3654.1,1e-08]
[1753356004632,8.63207708,3654.2,3653.1,0.04]
[1753356004633,2.73732617,3653.2,3653.1,0.04]
[1753356004791,8.28155879,3653.2,3653.1,0.04]
[1753356004995,3.90235879,3653.2,3653.1,0.04]
[1753356005295,8.41735879,3653.2,3653.1,0.04]
[1753356005910,3.62862617,3653.2,3653.1,0.04]
[1753356006109,7.39012617,3653.2,3653.1,0.04]
[1753356007444,7.85622617,3653.2,3653.1,0.04]
[1753356007608,2.73755098,3652.9,3652.8,1e-08]
[1753356007932,2.73807568,3652.2,3652.1,0.04]
[1753356008103,7.25407568,3652.2,3652.1,0.04]
[1753356008290,7.39087568,3652.2,3652.1,0.04]
[1753356008492,2.87487568,3652.2,3652.1,0.04]
[1753356008721,7.39087568,3652.2,3652.1,0.04]
[1753356009926,7.85697568,3652.2,3652.1,0.04]
[1753356010490,7.39087568,3652.2,3652.1,0.04]
[1753356011027,8.61707568,3652.2,3652.1,0.04]
[1753356014187,8.15097568,3652.2,3652.1,0.04]
[1753356014394,8.61707568,3652.2,3652.1,0.04]
[1753356014631,8.15097568,3652.2,3652.1,0.04]
[1753356014841,3.63497568,3652.2,3652.1,0.04]
[1753356015000,2.87487568,3652.2,3652.1,0.04]
[1753356015207,7.39087568,3652.2,3652.1,0.04]
[1753356016042,2.87487568,3652.2,3652.1,0.04]
[1753356016198,7.39087568,3652.2,3652.1,0.04]
[1753356017923,2.87487568,3652.2,3652.1,0.04]
[1753356018123,7.39087568,3652.2,3652.1,0.041]
[1753356018645,2.87487568,3652.2,3652.1,0.041]
[1753356021971,2.73815065,3652.1,3651.3,0.1378]
[1753356022161,4.00075065,3652.1,3651.3,0.1378]
[1753356022467,3.53645065,3652.1,3651.3,0.1378]
[1753356023637,3.53645065,3652.1,3652.0,1e-08]
[1753356023838,4.00075065,3652.1,3652.0,1e-08]
[1753356026835,3.53645065,3652.1,3652.0,1e-08]
[1753356027832,4.00075065,3652.1,3652.0,1e-08]
[1753356028292,2.73867557,3651.4,3651.3,1e-08]
[1753356028574,2.87547557,3651.4,3651.3,1e-08]
[1753356029566,8.67677557,3651.4,3651.3,1e-08]
[1753356029755,8.21247557,3651.4,3651.3,1e-08]
[1753356030066,8.67677557,3651.4,3651.1,1e-08]
[1753356030270,2.73882559,3651.2,3651.1,1e-08]